fUST/lending_fUST_20250803
["ID","MTS","AMOUNT","RATE_DAILY","PERIOD"]
[376949020,1754176241601,-1426.390531,0.00026849,7]
[376949021,1754176241611,-1426.390531,0.00026849,7]
[376949022,1754176241621,-1426.390531,0.00026849,7]
[376949023,1754176241631,-151.0,0.00026849,7]
[376949024,1754176241640,-1426.390531,0.00026849,7]
[376949025,1754176241650,-1426.390531,0.00026849,7]
[376949026,1754176241660,-1426.390531,0.00026849,7]
[376949027,1754176241670,-1426.39052741,0.00026849,7]
[376949028,1754176241681,-151.818332,0.00026849,7]
[376949029,1754176241691,-151.0,0.00026849,7]
[376949030,1754176241700,-151.0,0.00026849,7]
[376949031,1754176241710,-151.0,0.00026849,7]
[376949032,1754176241719,-151.0,0.00026849,7]
[376949033,1754176241729,-151.0,0.00026849,7]
[376949034,1754176241738,-151.0,0.00026849,7]
[376949035,1754176241747,-151.0,0.00026849,7]
[376949036,1754176241757,-151.0,0.00026849,7]
[376949037,1754176241766,-151.0,0.00026849,7]
[376949038,1754176241776,-151.0,0.00026849,7]
[376949039,1754176241785,-151.0,0.00026849,7]
[376949040,1754176241795,-151.0,0.00026849,7]
[376949041,1754176241804,-151.0,0.00026849,7]
[376949042,1754176241813,-151.0,0.00026849,7]
[376949043,1754176241824,-151.0,0.00026849,7]
[376949044,1754176241834,-151.0,0.00026849,7]
[376949045,1754176241843,-151.0,0.00026849,7]
[376949046,1754176241852,-151.0,0.00026849,7]
[376949047,1754176241862,-250.606031,0.00026849,7]
[376949048,1754176241871,-151.0,0.00026849,7]
[376949049,1754176241880,-151.0,0.00026849,7]
[376949050,1754176241890,-151.0,0.00026849,7]
[376949051,1754176241899,-151.0,0.00026849,7]
[376949052,1754176241908,-151.0,0.00026849,7]
[376949053,1754176241917,-151.0,0.00026849,7]
[376949054,1754176241927,-151.0,0.00026849,7]
[376949055,1754176241936,-151.0,0.00026849,7]
[376949056,1754176241945,-151.0,0.00026849,7]
[376949057,1754176241954,-151.0,0.00026849,7]
[376949058,1754176241963,-180.635956,0.00026849,7]
[376949059,1754176241973,-460.0,0.00026849,10]
[376949060,1754176241982,-343.51478512,0.00026849,10]
[376949061,1754176241992,-460.0,0.00026849,10]
[376949062,1754176242002,-344.0528,0.00026849,7]
[376949063,1754176242011,-344.0528,0.00026849,7]
[376949064,1754176242020,-344.0528,0.00026849,7]
[376949065,1754176242030,-344.0528,0.00026849,7]
[376949066,1754176242039,-344.0528,0.00026849,7]
[376949067,1754176242048,-344.0528,0.00026849,7]
[376949068,1754176242058,-344.0528,0.00026849,7]
[376949069,1754176242067,-344.0528,0.00026849,7]
[376949070,1754176242080,-344.0528,0.00026849,7]
[376949071,1754176242090,-344.0528,0.00026849,7]
[376949072,1754176242099,-344.0528,0.00026849,7]
[376949073,1754176242109,-344.0528,0.00026849,7]
[376949074,1754176242118,-344.0528,0.00026849,7]
[376949075,1754176242129,-344.0528,0.00026849,7]
[376949076,1754176242138,-344.0528,0.00026849,7]
[376949077,1754176242147,-344.0528,0.00026849,7]
[376949078,1754176242157,-344.0528,0.00026849,7]
[376949079,1754176242167,-344.0528,0.00026849,7]
[376949080,1754176242176,-344.0528,0.00026849,7]
[376949081,1754176242186,-344.052806,0.00026849,7]
[376949082,1754176242195,-460.0,0.00026849,10]
[376949083,1754176242205,-370.803206,0.00026849,7]
[376949084,1754176242214,-370.803206,0.00026849,7]
[376949085,1754176242223,-370.803206,0.00026849,7]
[376949086,1754176242232,-370.803206,0.00026849,7]
[376949087,1754176242242,-370.803206,0.00026849,7]
[376949088,1754176242251,-370.803206,0.00026849,7]
[376949089,1754176242260,-370.803206,0.00026849,7]
[376949090,1754176242270,-370.803206,0.00026849,7]
[376949091,1754176242279,-370.803206,0.00026849,7]
[376949092,1754176242288,-370.803206,0.00026849,7]
[376949093,1754176242297,-370.803206,0.00026849,7]
[376949094,1754176242307,-370.803206,0.00026849,7]
[376949095,1754176242316,-370.803206,0.00026849,7]
[376949096,1754176242327,-370.803206,0.00026849,7]
[376949097,1754176242337,-370.803206,0.00026849,7]
[376949098,1754176242346,-370.803206,0.00026849,7]
[376949099,1754176242355,-370.803206,0.00026849,7]
[376949100,1754176242365,-370.803206,0.00026849,7]
[376949101,1754176242374,-370.803206,0.00026849,7]
[376949102,1754176242383,-370.803196,0.00026849,7]
[376949103,1754176242392,-460.0,0.00026849,10]
[376949104,1754176242402,-460.0,0.00026849,10]
[376949105,1754176242411,-460.0,0.00026849,10]
[376949106,1754176242420,-485.37018886,0.00026849,10]
[376949107,1754176242430,-460.0,0.00026849,10]
[376949108,1754176242439,-460.0,0.00026849,10]
[376949109,1754176242448,-272.07171489,0.00026849,10]
[376949110,1754176242458,-461.55186778,0.00026849,5]
[376949111,1754176242467,-460.0,0.00026849,10]
[376949112,1754176242574,-460.0,0.00026849,10]
[376949113,1754176242585,-460.0,0.00026849,10]
[376949114,1754176242594,-460.0,0.00026849,10]
[376949115,1754176242604,-460.0,0.00026849,10]
[376949116,1754176242613,-460.0,0.00026849,10]
[376949117,1754176242622,-460.0,0.00026849,10]
[376949118,1754176242631,-460.0,0.00026849,10]
[376949119,1754176242641,-460.0,0.00026849,10]
[376949120,1754176242650,-460.0,0.00026849,10]
[376949121,1754176242660,-460.0,0.00026849,10]
[376949122,1754176242669,-460.0,0.00026849,10]
[376949123,1754176242678,-460.0,0.00026849,10]
[376949124,1754176242687,-460.0,0.00026849,10]
[376949125,1754176242696,-460.0,0.00026849,10]
[376949126,1754176242705,-460.0,0.00026849,10]
[376949127,1754176242714,-461.7968613,0.00026849,10]
[376949128,1754176242723,-460.0,0.00026849,10]
[376949129,1754176242731,-460.0,0.00026849,10]
[376949130,1754176242740,-460.0,0.00026849,10]
[376949131,1754176242749,-460.0,0.00026849,10]
[376949132,1754176242758,-460.0,0.00026849,10]
[376949133,1754176242767,-609.29969677,0.00026849,10]
[376949134,1754176242775,-460.0,0.00026849,10]
[376949135,1754176242784,-460.0,0.00026849,10]
[376949136,1754176242793,-460.0,0.00026849,10]
[376949137,1754176242802,-460.0,0.00026849,10]
[376949138,1754176242811,-460.0,0.00026849,10]
[376949139,1754176242821,-460.0,0.00026849,10]
[376949140,1754176242830,-460.0,0.00026849,10]
[376949141,1754176242839,-460.0,0.00026849,10]
[376949142,1754176242848,-460.0,0.00026849,10]
[376949143,1754176242857,-460.0,0.00026849,10]
[376949144,1754176242866,-460.0,0.00026849,10]
[376949145,1754176242875,-460.0,0.00026849,10]
[376949146,1754176242884,-460.0,0.00026849,10]
[376949147,1754176242893,-460.0,0.00026849,10]
[376949148,1754176242902,-460.0,0.00026849,10]
[376949149,1754176242911,-460.0,0.00026849,10]
[376949150,1754176242921,-460.0,0.00026849,10]
[376949151,1754176242931,-460.0,0.00026849,10]
[376949152,1754176242940,-460.0,0.00026849,10]
[376949153,1754176242950,-460.0,0.00026849,10]
[376949154,1754176242960,-460.0,0.00026849,10]
[376949155,1754176242970,-460.0,0.00026849,10]
[376949156,1754176242979,-460.0,0.00026849,10]
[376949157,1754176242988,-460.0,0.00026849,10]
[376949158,1754176242997,-460.0,0.00026849,10]
[376949159,1754176243007,-239.36,0.00026849,10]
[376949160,1754176243016,-460.0,0.00026849,10]
[376949161,1754176243025,-460.0,0.00026849,10]
[376949162,1754176243034,-460.0,0.00026849,10]
[376949163,1754176243044,-460.0,0.00026849,10]
[376949164,1754176243053,-460.0,0.00026849,10]
[376949165,1754176243063,-1253.86,0.00026849,10]
[376949167,1754176243074,-1253.86,0.00026849,10]
[376949169,1754176243084,-1253.86,0.00026849,10]
[376949170,1754176243093,-1253.86,0.00026849,10]
[376949171,1754176243103,-1253.86,0.00026849,10]
[376949172,1754176243112,-1253.86,0.00026849,10]
[376949173,1754176243121,-460.0,0.00026849,10]
[376949174,1754176243131,-1253.86,0.00026849,10]
[376949175,1754176243140,-1253.86,0.00026849,10]
[376949176,1754176243150,-1253.86,0.00026849,10]
[376949177,1754176243159,-1253.86,0.00026849,10]
[376949178,1754176243169,-1253.86,0.00026849,10]
[376949179,1754176243178,-1253.86,0.00026849,10]
[376949180,1754176243187,-1253.86,0.00026849,10]
[376949181,1754176243197,-460.0,0.00026849,10]
[376949183,1754176243207,-460.0,0.00026849,10]
[376949184,1754176243216,-1253.86,0.00026849,10]
[376949185,1754176243225,-1253.86,0.00026849,10]
[376949186,1754176243234,-1253.86,0.00026849,10]
[376949187,1754176243244,-1253.86,0.00026849,10]
[376949188,1754176243253,-1253.86,0.00026849,10]
[376949189,1754176243262,-1253.86,0.00026849,10]
[376949190,1754176243271,-1253.86,0.00026849,10]
[376949191,1754176243280,-1253.86,0.00026849,10]
[376949192,1754176243289,-1253.86,0.00026849,10]
[376949193,1754176243299,-1253.86,0.00026849,10]
[376949194,1754176243308,-1254.09,0.00026849,10]
[376949195,1754176243317,-422.616087,0.00026849,7]
[376949196,1754176243327,-422.616087,0.00026849,7]
[376949198,1754176243336,-422.616079,0.00026849,7]
[376949200,1754176243345,-460.0,0.00026849,10]
[376949201,1754176243355,-460.0,0.00026849,10]
[376949202,1754176243364,-460.0,0.00026849,10]
[376949203,1754176243373,-460.0,0.00026849,10]
[376949204,1754176243383,-460.0,0.00026849,10]
[376949205,1754176243392,-460.0,0.00026849,10]
[376949207,1754176243401,-460.0,0.00026849,10]
[376949209,1754176243410,-460.0,0.00026849,10]
[376949211,1754176243419,-460.0,0.00026849,10]
[376949212,1754176243429,-460.0,0.00026849,10]
[376949214,1754176243438,-188.47278744,0.00026849,10]
[376949216,1754176243447,-151.0,0.00026849,7]
[376949218,1754176243457,-151.0,0.00026849,7]
[376949219,1754176243466,-151.0,0.00026849,7]
[376949221,1754176243475,-460.0,0.00026849,10]
[376949223,1754176243484,-151.0,0.00026849,7]
[376949225,1754176243497,-460.0,0.00026849,10]
[376949227,1754176243506,-460.0,0.00026849,10]
[376949229,1754176243515,-189.72464462,0.00026849,10]
[376949231,1754176243524,-460.0,0.00026849,10]
[376949233,1754176243534,-151.0,0.00026849,10]
[376949235,1754176243543,-151.0,0.00026849,10]
[376949237,1754176243553,-151.0,0.00026849,10]
[376949239,1754176243563,-460.0,0.00026849,10]
[376949241,1754176243572,-151.0,0.00026849,7]
[376949243,1754176243582,-460.0,0.00026849,10]
[376949245,1754176243591,-460.0,0.00026849,10]
[376949247,1754176243601,-460.0,0.00026849,10]
[376949249,1754176243610,-318.82108637,0.00026849,10]
[376949251,1754176243619,-520.92841865,0.00026849,10]
[376949253,1754176243628,-462.28532286,0.00026849,10]
[376949255,1754176243638,-462.48905074,0.00026849,10]
[376949257,1754176243647,-151.0,0.00026849,7]
[376949259,1754176243657,-460.0,0.00026849,10]
[376949261,1754176243666,-460.0,0.00026849,10]
[376949263,1754176243675,-460.0,0.00026849,10]
[376949265,1754176243684,-460.0,0.00026849,10]
[376949267,1754176243694,-500.0,0.00026849,10]
[376949269,1754176243703,-460.0,0.00026849,10]
[376949271,1754176243712,-460.0,0.00026849,10]
[376949273,1754176243722,-460.0,0.00026849,10]
[376949274,1754176243731,-471.61997683,0.00026849,10]
[376949275,1754176243740,-460.0,0.00026849,10]
[376949276,1754176243749,-460.0,0.00026849,10]
[376949277,1754176243758,-460.0,0.00026849,10]
[376949278,1754176243767,-460.0,0.00026849,10]
[376949279,1754176243777,-460.0,0.00026849,10]
[376949280,1754176243786,-460.0,0.00026849,10]
[376949281,1754176243795,-460.0,0.00026849,10]
[376949282,1754176243804,-460.0,0.00026849,10]
[376949284,1754176243813,-420.0,0.00026849,10]
[376949285,1754176243823,-460.0,0.00026849,10]
[376949286,1754176243832,-460.0,0.00026849,10]
[376949287,1754176243842,-460.0,0.00026849,10]
[376949288,1754176243851,-462.00586785,0.00026849,10]
[376949289,1754176243860,-12642.0599901,0.00026849,3]
[376949291,1754176243869,-541.81195,0.00026849,7]
[376949293,1754176243877,-541.81195,0.00026849,7]
[376949294,1754176243886,-541.81195,0.00026849,7]
[376949295,1754176243896,-541.81195,0.00026849,7]
[376949296,1754176243906,-335.43530583,0.00026849,7]
[376949297,1754176243916,-541.81195,0.00026849,7]
[376949298,1754176243925,-541.81195,0.00026849,7]
[376949299,1754176243934,-541.81195,0.00026849,7]
[376949300,1754176243943,-541.81195,0.00026849,7]
[376949301,1754176243953,-541.81195,0.00026849,7]
[376949302,1754176243962,-541.81195,0.00026849,7]
[376949303,1754176243971,-541.81195,0.00026849,7]
[376949304,1754176243980,-541.81195,0.00026849,7]
[376949305,1754176243989,-541.81195,0.00026849,7]
[376949306,1754176243998,-541.81195,0.00026849,7]
[376949307,1754176244007,-541.81195,0.00026849,7]
[376949308,1754176244016,-541.81195,0.00026849,7]
[376949309,1754176244025,-541.81195,0.00026849,7]
[376949310,1754176244034,-541.81195,0.00026849,7]
[376949311,1754176244043,-541.81195,0.00026849,7]
[376949312,1754176244053,-541.811947,0.00026849,7]
[376949313,1754176244062,-460.0,0.00026849,10]
[376949314,1754176244072,-460.0,0.00026849,10]
[376949315,1754176244082,-460.0,0.00026849,10]
[376949316,1754176244091,-460.0,0.00026849,10]
[376949317,1754176244101,-460.0,0.00026849,10]
[376949318,1754176244110,-460.0,0.00026849,10]
[376949319,1754176244120,-460.0,0.00026849,10]
[376949320,1754176244129,-460.0,0.00026849,10]
[376949321,1754176244138,-460.0,0.00026849,10]
[376949322,1754176244147,-460.0,0.00026849,10]
[376949323,1754176244156,-462.76921222,0.00026849,10]
[376949324,1754176244166,-460.0,0.00026849,10]
[376949325,1754176244175,-460.0,0.00026849,10]
[376949326,1754176244184,-460.0,0.00026849,10]
[376949327,1754176244194,-460.0,0.00026849,10]
[376949328,1754176244203,-460.0,0.00026849,10]
[376949329,1754176244213,-462.7316633,0.00026849,10]
[376949330,1754176244223,-460.0,0.00026849,10]
[376949331,1754176244232,-460.0,0.00026849,10]
[376949332,1754176244241,-460.0,0.00026849,10]
[376949333,1754176244250,-460.0,0.00026849,10]
[376949334,1754176244259,-460.0,0.00026849,10]
[376949335,1754176244271,-460.0,0.00026849,10]
[376949336,1754176244280,-460.0,0.00026849,10]
[376949337,1754176244289,-460.0,0.00026849,10]
[376949338,1754176244298,-460.0,0.00026849,10]
[376949339,1754176244307,-460.0,0.00026849,10]
[376949340,1754176244316,-460.0,0.00026849,10]
[376949341,1754176244327,-460.0,0.00026849,10]
[376949342,1754176244342,-566.14,0.00026849,10]
[376949343,1754176244355,-566.14,0.00026849,10]
[376949344,1754176244365,-566.14,0.00026849,10]
[376949345,1754176244374,-460.0,0.00026849,10]
[376949346,1754176244383,-566.14,0.00026849,10]
[376949347,1754176244393,-566.14,0.00026849,10]
[376949348,1754176244403,-460.0,0.00026849,10]
[376949349,1754176244413,-566.14,0.00026849,10]
[376949350,1754176244422,-460.0,0.00026849,10]
[376949351,1754176244431,-566.14,0.00026849,10]
[376949352,1754176244441,-462.12385507,0.00026849,10]
[376949353,1754176244451,-566.14,0.00026849,10]
[376949354,1754176244460,-566.14,0.00026849,10]
[376949355,1754176244471,-566.14,0.00026849,10]
[376949356,1754176244481,-566.14,0.00026849,10]
[376949357,1754176244492,-169.9622233,0.00026849,10]
[376949358,1754176245019,-290.0377767,0.00026849,10]
[376949359,1754176245029,-173.09968718,0.00026849,10]
[376949360,1754176245040,-370.4,0.00026849,10]
[376949361,1754176245051,-22.64031282,0.00026849,10]
[376949362,1754176245061,-206.82295796,0.00026849,10]
[376949363,1754176245070,-460.0,0.00026849,10]
[376949364,1754176245080,-100.62672922,0.00026849,10]
[376949365,1754176245274,-460.0,0.00026849,10]
[376949366,1754176245283,-16.07036022,0.00026849,10]
[376949382,1754176246806,-443.92963978,0.00026849,10]
[376949383,1754176246815,-460.0,0.00026849,10]
[376949384,1754176246826,-530.89768583,0.00026849,10]
[376949385,1754176246836,-460.0,0.00026849,10]
[376949386,1754176246845,-460.0,0.00026849,10]
[376949387,1754176246854,-460.0,0.00026849,10]
[376949388,1754176246863,-460.0,0.00026849,10]
[376949389,1754176246872,-471.66945832,0.00026849,10]
[376949390,1754176246881,-460.0,0.00026849,10]
[376949391,1754176246890,-460.0,0.00026849,10]
[376949392,1754176246899,-460.0,0.00026849,10]
[376949393,1754176246909,-460.0,0.00026849,10]
[376949394,1754176246918,-460.0,0.00026849,10]
[376949395,1754176246927,-460.0,0.00026849,10]
[376949396,1754176246936,-460.0,0.00026849,10]
[376949397,1754176246946,-460.0,0.00026849,10]
[376949398,1754176246955,-460.0,0.00026849,10]
[376949399,1754176246965,-267.53003553,0.00026849,10]
[376949400,1754176246974,-224.6859614,0.00026849,10]
[376949401,1754176246983,-460.0,0.00026849,10]
[376949402,1754176246993,-460.0,0.00026849,10]
[376949403,1754176247002,-460.0,0.00026849,10]
[376949404,1754176247011,-460.0,0.00026849,10]
[376949405,1754176247020,-460.0,0.00026849,10]
[376949406,1754176247029,-460.0,0.00026849,10]
[376949407,1754176247039,-460.0,0.00026849,10]
[376949408,1754176247047,-460.0,0.00026849,10]
[376949409,1754176247057,-207.21574985,0.00026849,10]
[376949410,1754176247066,-460.0,0.00026849,10]
[376949411,1754176247076,-460.0,0.00026849,10]
[376949412,1754176247085,-460.0,0.00026849,10]
[376949413,1754176247095,-460.0,0.00026849,10]
[376949414,1754176247104,-460.0,0.00026849,10]
[376949415,1754176247113,-460.0,0.00026849,10]
[376949416,1754176247123,-460.0,0.00026849,10]
[376949417,1754176247133,-460.0,0.00026849,10]
[376949418,1754176247142,-460.0,0.00026849,10]
[376949419,1754176247153,-460.0,0.00026849,10]
[376949420,1754176247162,-169.78311318,0.00026849,10]
[376949421,1754176247172,-460.0,0.00026849,10]
[376949422,1754176247181,-460.0,0.00026849,10]
[376949423,1754176247190,-460.0,0.00026849,10]
[376949424,1754176247199,-460.0,0.00026849,10]
[376949425,1754176247209,-460.0,0.00026849,10]
[376949426,1754176247218,-460.0,0.00026849,10]
[376949427,1754176247227,-460.0,0.00026849,10]
[376949429,1754176247237,-460.0,0.00026849,10]
[376949431,1754176247247,-460.0,0.00026849,10]
[376949432,1754176247257,-460.0,0.00026849,10]
[376949433,1754176247267,-460.0,0.00026849,10]
[376949434,1754176247276,-498.81,0.00026849,10]
[376949435,1754176247285,-460.0,0.00026849,10]
[376949436,1754176247295,-460.0,0.00026849,10]
[376949437,1754176247304,-460.0,0.00026849,10]
[376949438,1754176247313,-460.0,0.00026849,10]
[376949439,1754176247323,-460.0,0.00026849,10]
[376949440,1754176247334,-460.0,0.00026849,10]
[376949441,1754176247343,-460.0,0.00026849,10]
[376949442,1754176247353,-460.0,0.00026849,10]
[376949443,1754176247362,-460.0,0.00026849,10]
[376949444,1754176247372,-460.0,0.00026849,10]
[376949445,1754176247382,-460.0,0.00026849,10]
[376949446,1754176247391,-460.0,0.00026849,10]
[376949447,1754176247400,-460.0,0.00026849,10]
[376949448,1754176247410,-460.0,0.00026849,10]
[376949449,1754176247419,-460.0,0.00026849,10]
[376949450,1754176247428,-460.0,0.00026849,10]
[376949451,1754176247437,-460.0,0.00026849,10]
[376949452,1754176247447,-460.0,0.00026849,10]
[376949453,1754176247457,-562.78,0.00026849,10]
[376949454,1754176247466,-460.0,0.00026849,10]
[376949455,1754176247475,-460.0,0.00026849,10]
[376949456,1754176247485,-460.0,0.00026849,10]
[376949457,1754176247496,-460.0,0.00026849,10]
[376949458,1754176247506,-460.0,0.00026849,10]
[376949459,1754176247516,-460.0,0.00026849,10]
[376949460,1754176247526,-460.0,0.00026849,10]
[376949461,1754176247535,-151.0,0.00026849,7]
[376949462,1754176247545,-151.0,0.00026849,7]
[376949463,1754176247554,-153.027435,0.00026849,7]
[376949464,1754176247563,-460.0,0.00026849,10]
[376949465,1754176247574,-460.0,0.00026849,10]
[376949466,1754176247583,-460.0,0.00026849,10]
[376949467,1754176247592,-460.0,0.00026849,10]
[376949468,1754176247601,-460.0,0.00026849,10]
[376949469,1754176247610,-460.0,0.00026849,10]
[376949470,1754176247619,-460.0,0.00026849,10]
[376949471,1754176247628,-460.0,0.00026849,10]
[376949472,1754176247637,-460.0,0.00026849,10]
[376949473,1754176247646,-460.0,0.00026849,10]
[376949474,1754176247655,-54.07092111,0.00026849,10]
[376949483,1754176386342,160.911422,0.00013699,2]
[376949484,1754176386547,160.911422,0.00020548,2]
[376949490,1754176503251,153.0,0.00022,2]
[376949502,1754176984427,1666.61187268,0.00023061,2]
[376949503,1754177102269,177.95365513,0.00023061,2]
[376949504,1754177151183,-351.04,0.00023144,2]
[376949505,1754177151212,-150.11246695,0.000232,2]
[376949506,1754177151235,-351.04,0.0002379,2]
[376949507,1754177151259,-207.560283,0.00023955,2]
[376949508,1754177151288,-579.02861319,0.00024042,2]
[376949509,1754177182160,160.0,0.00013699,2]
[376949510,1754177182501,260.0,0.00014247,2]
[376949511,1754177182816,360.0,0.00014795,2]
[376949512,1754177207097,-177.45808644,0.00023174,2]
[376949513,1754177226291,237.56866844,0.00021942,2]
[376949514,1754177245081,-95.58191356,0.00023174,2]
[376949515,1754177245103,-273.04,0.00023822,2]
[376949516,1754177245124,-420.97138681,0.00024042,2]
[376949517,1754177245144,-500.0,0.00024138,2]
[376949518,1754177245166,-184.74650961,0.00024324,2]
[376949519,1754177247732,442.56380022,0.00027986,30]
[376949520,1754177308670,17059.80685222,0.0002198,2]
[376949521,1754177312436,566.78334563,0.00021739,2]
[376949522,1754177322448,1156.19424603,0.0001,2]
[376949523,1754177328484,212.36,0.00023,2]
[376949524,1754177394778,-212.36,0.00023714,2]
[376949525,1754177394806,-2436.94443379,0.00024,15]
[376949526,1754177394831,-200.69556621,0.0002415,2]
[376949565,1754177432034,-165.17,0.00023124,2]
[376949566,1754177432046,-165.17,0.0002377,2]
[376949567,1754177432057,-278.72452349,0.0002415,2]
[376949568,1754177432145,-20.5799103,0.0002415,2]
[376949569,1754177432157,-1200.0,0.00024324,2]
[376949570,1754177432168,-300.0,0.00024324,2]
[376949571,1754177432179,-13620.4389066,0.00024325,2]
[376949572,1754177432191,-165.17,0.00024416,2]
[376949574,1754177432203,-160.629354,0.00024907,8]
[376949576,1754177432214,-5076.72672616,0.00025,4]
[376949578,1754177432227,-7114.8123698,0.00025,4]
[376949643,1754177437888,-3940.32236836,0.00025,4]
[376949644,1754177437902,-11855.64401712,0.00025,4]
[376949645,1754177437916,-14662.27355318,0.00025,4]
[376949646,1754177437927,-150.99999955,0.00025,5]
[376949647,1754177437937,-165.17,0.00025,7]
[376949648,1754177437946,-36757.25550535,0.00025,2]
[376949649,1754177437958,-3088.02059759,0.00025,2]
[376949650,1754177437970,-966.03710105,0.00025,2]
[376949651,1754177437982,-1485.60026798,0.00025,2]
[376949652,1754177438058,-267.09860424,0.00025,2]
[376950270,1754177445902,-458.5,0.00025,2]
[376950272,1754177445914,-6977.48792379,0.00025,2]
[376950274,1754177445924,-185.755912,0.00025024,2]
[376950276,1754177445933,-200.0,0.0002554,15]
[376950278,1754177445943,-300.0,0.0002554,15]
[376950280,1754177445952,-165.17,0.00025708,7]
[376950282,1754177445962,-713.96648554,0.00026004,2]
[376950285,1754177445972,-257.75535278,0.00026043,2]
[376950287,1754177445982,-242.207,0.00026043,12]
[376950289,1754177445991,-911.0,0.00026274,2]
[376950291,1754177446000,-345.80067811,0.00026323,2]
[376950294,1754177446012,-181.22397283,0.00026323,2]
[376950296,1754177446021,-231.57249719,0.00026323,2]
[376950298,1754177446030,-216.27517063,0.00026323,2]
[376950300,1754177446039,-160.0,0.00026323,2]
[376950302,1754177446048,-160.0,0.00026323,2]
[376950304,1754177446057,-160.0,0.00026323,2]
[376950306,1754177446066,-841.70373825,0.00026324,2]
[376950308,1754177446076,-160.0,0.00026324,2]
[376950310,1754177446085,-160.0,0.00026325,2]
[376950312,1754177446094,-161.0906166,0.00026329,2]
[376950314,1754177446104,-500.0,0.00026342,2]
[376950316,1754177446113,-165.17,0.00026355,7]
[376950318,1754177446122,-420.0,0.00026369,2]
[376950319,1754177446131,-161.0906166,0.00026658,2]
[376950322,1754177446141,-2458.72437928,0.00026749,2]
[376950324,1754177446150,-2418.82359044,0.00026749,2]
[376950325,1754177446160,-326.15177193,0.00026749,2]
[376950331,1754177446199,-5.73319963,0.00026749,2]
[376950476,1754177528779,158.37911229,0.000229,2]
[376950477,1754177618784,170.156351,0.00013699,2]
[376950478,1754177619060,170.156351,0.00020187,2]
[376950480,1754177829921,150.0,0.000229,2]
[376950483,1754178131666,150.0,0.000229,2]
[376950485,1754178278689,179.74835231,0.0002209,2]
[376950488,1754178352113,-500.0,0.0002415,2]
[376950489,1754178352135,-161.937888,0.00024907,8]
[376950490,1754178352155,-1000.0,0.00024917,2]
[376950491,1754178352174,-201.5931,0.00025216,2]
[376950492,1754178352194,-84.53055353,0.00025603,2]
[376950493,1754178416107,-177.66612362,0.00025602,2]
[376950494,1754178432088,-460.86285458,0.00025603,2]
[376950495,1754178432112,-185.755912,0.00025768,2]
[376950496,1754178432135,-160.0,0.00026039,2]
[376950497,1754178432160,-171.83690185,0.00026043,2]
[376950498,1754178432183,-662.93311807,0.00026098,2]
[376950500,1754178553384,185.081969,0.00013699,2]
[376950501,1754178553617,185.081969,0.00020187,2]
[376950513,1754178632118,-500.0,0.0002415,2]
[376950515,1754178632133,-174.306413,0.0002519,2]
[376950518,1754178632146,-171.83690185,0.00026043,2]
[376950520,1754178632157,-1123.0,0.00026098,2]
[376950522,1754178632169,-720.0,0.00026099,2]
[376950524,1754178632180,-300.0,0.00026099,2]